bitfinex-derivatives/quotes_BNBF0:USTF0_20260110
["timestamp","ask_amount","ask_price","bid_price","bid_amount"]
[1768073487911,0.19013848,915.8,914.34,0.68342011]
[1768073488111,0.19013848,915.8,914.35,0.68342011]
[1768073488316,0.19013848,915.8,914.36,0.68342011]
[1768073488512,0.19013848,915.8,914.37,0.68342011]
[1768073488717,0.19013848,915.8,914.38,0.68342011]
[1768073488918,0.19013848,915.8,914.39,0.68342011]
[1768073489214,7.9427496,916.66,914.4,0.68342011]
[1768073489415,7.9427496,916.66,914.45,0.81376673]
[1768073489617,0.19007357,915.86,914.46,0.68342011]
[1768073489818,7.9427496,916.66,914.47,0.68342011]
[1768073490018,0.19007928,915.77,914.48,0.68342011]
[1768073490217,0.19007928,915.77,914.49,0.68342011]
[1768073490420,7.9427496,916.66,914.5,0.68342011]
[1768073490615,0.19005748,915.97,914.55,0.81376673]
[1768073490819,7.9427496,916.66,914.56,0.68342011]
[1768073491020,7.9427496,916.66,914.57,0.68342011]
[1768073491217,0.19005385,915.97,914.58,0.68342011]
[1768073491417,7.9427496,916.66,914.59,0.68342011]
[1768073491620,0.19005229,915.97,914.6,0.68342011]
[1768073491814,7.9427496,916.66,914.61,0.68342011]
[1768073492120,0.19005125,915.97,914.62,0.68342011]
[1768073492319,0.19005125,915.97,914.63,0.68342011]
[1768073492520,7.9427496,916.66,914.64,0.68342011]
[1768073492719,0.19005022,915.97,914.65,0.68342011]
[1768073492921,7.9427496,916.66,914.66,0.68342011]
[1768073493117,7.9427496,916.66,914.67,0.68342011]
[1768073493420,7.9427496,916.66,914.68,0.68342011]
[1768073493618,7.9427496,916.66,914.69,0.68342011]
[1768073493822,0.19004762,916.17,914.7,0.68342011]
[1768073494120,0.19004762,916.17,914.71,0.68342011]
[1768073494419,0.19004762,916.17,914.72,0.68342011]
[1768073494623,0.19004762,916.17,914.73,0.68342011]
[1768073494822,0.19004762,916.17,914.74,0.68342011]
[1768073495119,0.19004762,916.17,914.75,0.68342011]
[1768073495323,0.19004762,916.17,914.76,0.68342011]
[1768073495619,0.19004762,916.17,914.77,0.68342011]
[1768073495825,0.19004762,916.17,914.78,0.68342011]
[1768073496020,0.19004762,916.17,914.79,0.68342011]
[1768073496224,0.19004762,916.17,914.8,0.68342011]
[1768073496424,0.19004762,916.17,914.81,0.68342011]
[1768073496724,0.19004762,916.17,914.82,0.68342011]
[1768073496925,0.19004762,916.17,914.83,0.68342011]
[1768073497124,0.19004762,916.17,914.63,0.81376673]
[1768073497125,0.19004762,916.17,914.84,0.68342011]
[1768073497323,0.19004762,916.17,914.85,0.68342011]
[1768073497526,0.19004762,916.17,914.86,0.68342011]
[1768073497827,0.19004762,916.17,914.87,0.68342011]
[1768073498026,0.19004762,916.17,914.88,0.68342011]
[1768073498226,0.19004762,916.17,914.89,0.68342011]
[1768073498424,0.19004762,916.17,914.9,0.68342011]
[1768073498625,0.19004762,916.17,914.91,0.68342011]
[1768073498828,0.19004762,916.17,914.92,0.68342011]
[1768073499028,0.19004762,916.17,914.93,0.68342011]
[1768073499227,0.19004762,916.17,914.94,0.68342011]
[1768073499525,0.19004762,916.17,914.95,0.68342011]
[1768073499727,0.19004762,916.17,914.61,0.81376673]
[1768073499929,0.19004762,916.17,914.62,0.68475307]
[1768073500128,0.19004762,916.17,914.63,0.68475307]
[1768073500330,0.19004762,916.17,914.64,0.68475307]
[1768073500528,0.19004762,916.17,914.65,0.68475307]
[1768073500727,0.19004762,916.17,914.66,0.68475307]
[1768073500929,0.19004762,916.17,914.67,0.68475307]
[1768073501123,0.19004762,916.17,914.68,0.68475307]
[1768073501329,0.19004762,916.17,914.69,0.68475307]
[1768073501529,0.19004762,916.17,914.7,0.68475307]
[1768073501729,0.19004762,916.17,914.71,0.68475307]
[1768073501928,0.19004762,916.17,914.58,2.171]
[1768073502128,0.19004762,916.17,914.59,0.68503438]
[1768073502325,0.19004762,916.17,914.6,0.68503438]
[1768073502527,0.19004762,916.17,914.61,0.68503438]
[1768073502727,0.19004762,916.17,914.62,0.68503438]
[1768073502926,0.19004762,916.17,914.63,0.68503438]
[1768073503129,0.19004762,916.17,914.64,0.68503438]
[1768073503326,0.19004762,916.17,914.65,0.68503438]
[1768073503629,0.19004762,916.17,914.66,0.68503438]
[1768073503829,0.19004762,916.17,914.67,0.68503438]
[1768073504027,0.19004762,916.17,914.68,0.68503438]
[1768073504226,0.19004762,916.17,914.69,0.68503438]
[1768073504425,0.19004762,916.17,914.58,2.171]
[1768073504426,0.19004762,916.17,914.7,0.68503438]
[1768073504631,0.19004762,916.17,914.71,0.68503438]
[1768073504831,0.19004762,916.17,914.58,2.171]
[1768073505032,0.19004762,916.17,914.59,0.68579459]
[1768073505331,0.19004762,916.17,914.6,0.68579459]
[1768073505528,0.19004762,916.17,914.61,0.68579459]
[1768073505733,0.19004762,916.17,914.62,0.68579459]
[1768073505929,0.19004762,916.17,914.58,2.171]
[1768073505930,0.19004762,916.17,914.63,0.68579459]
[1768073506130,0.19004762,916.17,914.64,0.68579459]
[1768073506329,0.19004762,916.17,914.65,0.68579459]
[1768073506533,0.19004762,916.17,914.66,0.68579459]
[1768073506730,0.19004762,916.17,914.67,0.68579459]
[1768073506929,0.19004762,916.17,914.68,0.68579459]
[1768073507134,0.19004762,916.17,914.69,0.68579459]
[1768073507434,0.19004762,916.17,914.58,2.171]
[1768073507435,0.19004762,916.17,914.7,0.68579459]
[1768073507631,0.19004762,916.17,914.58,2.171]
[1768073507836,0.19004762,916.17,914.59,0.6858822]
[1768073508136,0.19004762,916.17,914.6,0.6858822]
[1768073508335,0.19004762,916.17,914.61,0.6858822]
[1768073508636,0.19004762,916.17,914.62,0.6858822]
[1768073508833,0.19004762,916.17,914.63,0.6858822]
[1768073509033,0.19004762,916.17,914.58,2.171]
[1768073509238,0.19004762,916.17,914.59,0.68586022]
[1768073509534,0.19004762,916.17,914.6,0.68586022]
[1768073509738,0.19004762,916.17,914.61,0.68586022]
[1768073509936,0.19004762,916.17,914.62,0.6856994]
[1768073510135,0.19004762,916.17,914.63,0.6856994]
[1768073510339,0.19004762,916.17,914.64,0.6856994]
[1768073510536,0.19004762,916.17,914.65,0.6856994]
[1768073510839,0.19004762,916.17,914.66,0.6856994]
[1768073511036,0.19004762,916.17,914.67,0.6856994]
[1768073511335,0.19004762,916.17,914.58,2.171]
[1768073511336,0.19004762,916.17,914.68,0.6856994]
[1768073511636,0.19004762,916.17,914.69,0.6856994]
[1768073511839,0.19004762,916.17,914.7,0.6856994]
[1768073512036,0.19004762,916.17,914.71,0.6856994]
[1768073512236,0.19004762,916.17,914.72,0.6856994]
[1768073512439,0.19004762,916.17,914.73,0.6856994]
[1768073512639,0.19004762,916.17,914.74,0.6856994]
[1768073512939,0.19004762,916.17,914.75,0.6856994]
[1768073513136,0.19004762,916.17,914.76,0.6856994]
[1768073513336,0.19004762,916.17,914.77,0.6856994]
[1768073513636,0.19004762,916.17,914.78,0.6856994]
[1768073513839,0.19004762,916.17,914.79,0.6856994]
[1768073514041,0.19004762,916.17,914.8,0.6856994]
[1768073514238,0.19004762,916.17,914.58,2.171]
[1768073514547,0.19004762,916.17,914.59,0.68509233]
[1768073514840,0.19004762,916.17,914.6,0.68509233]
[1768073515041,0.19004762,916.17,914.61,0.68509233]
[1768073515236,0.19004762,916.17,914.62,0.68509233]
[1768073515440,0.19004762,916.17,914.63,0.68509233]
[1768073515736,0.19004762,916.17,914.64,0.68509233]
[1768073515940,0.19004762,916.17,914.65,0.68509233]
[1768073516139,0.19004762,916.17,914.66,0.68509233]
[1768073516342,0.19004762,916.17,914.67,0.68509233]
[1768073516539,0.19004762,916.17,914.68,0.68509233]
[1768073516740,0.19004762,916.17,914.69,0.68509233]
[1768073516939,0.19004762,916.17,914.7,0.68509233]
[1768073517240,0.19004762,916.17,914.71,0.68509233]
[1768073517443,0.19004762,916.17,914.72,0.68509233]
[1768073517644,0.19004762,916.17,914.73,0.68509233]
[1768073517844,0.19004762,916.17,914.74,0.68509233]
[1768073518043,0.19004762,916.17,914.75,0.68509233]
[1768073518244,0.19004762,916.17,914.76,0.68509233]
[1768073518444,0.19004762,916.17,914.77,0.68509233]
[1768073518640,0.19004762,916.17,914.78,0.68509233]
[1768073518846,0.19004762,916.17,914.79,0.68509233]
[1768073519046,0.19004762,916.17,914.8,0.68509233]
[1768073519243,0.19004762,916.17,914.81,0.68509233]
[1768073519443,0.19004762,916.17,914.82,0.68509233]
[1768073519641,0.19004762,916.17,914.83,0.68509233]
[1768073519846,0.19004762,916.17,914.84,0.68509233]
[1768073520042,0.19004762,916.17,914.85,0.68509233]
[1768073520345,0.19004762,916.17,914.86,0.68509233]
[1768073520545,0.19004762,916.17,914.58,2.171]
[1768073520743,0.19004762,916.17,914.59,0.68539028]
[1768073520942,0.19004762,916.17,914.6,0.68539028]
[1768073521242,0.19004762,916.17,914.61,0.68539028]
[1768073521546,0.19004762,916.17,914.62,0.68539028]
[1768073521747,0.19004762,916.17,914.63,0.68539028]
[1768073521942,0.19004762,916.17,914.64,0.68539028]
[1768073522142,0.19004762,916.17,914.65,0.68539028]
[1768073522340,0.19004762,916.17,914.66,0.68539028]
[1768073522543,0.19004762,916.17,914.58,2.171]
[1768073522544,0.19004762,916.17,914.67,0.68539028]
[1768073522743,0.19004762,916.17,914.68,0.68539028]
[1768073522947,0.19004762,916.17,914.69,0.68539028]
[1768073523147,0.19004762,916.17,914.7,0.68539028]
[1768073523344,0.19004762,916.17,914.71,0.68539028]
[1768073523548,0.19004762,916.17,914.72,0.68539028]
[1768073523844,0.19004762,916.17,914.73,0.68539028]
[1768073524042,0.19004762,916.17,914.74,0.68539028]
[1768073524348,0.19004762,916.17,914.75,0.68539028]
[1768073524648,0.19004762,916.17,914.76,0.68539028]
[1768073524946,0.19004762,916.17,914.58,2.98476673]
[1768073524947,0.19004762,916.17,914.77,0.68539028]
[1768073525244,0.19004762,916.17,914.78,0.68539028]
[1768073525448,0.19004762,916.17,914.79,0.68539028]
[1768073525647,0.19004762,916.17,914.8,0.68539028]
[1768073525843,0.19004762,916.17,914.81,0.68539028]
[1768073526045,0.19004762,916.17,914.82,0.68539028]
[1768073526245,0.19004762,916.17,914.83,0.68539028]
[1768073526443,0.19004762,916.17,914.84,0.68539028]
[1768073526643,0.19004762,916.17,914.85,0.68539028]
[1768073526844,0.19004762,916.17,914.86,0.68539028]
[1768073527044,0.19004762,916.17,914.87,0.68539028]
[1768073527243,0.19004762,916.17,914.88,0.68539028]
[1768073527547,0.19004762,916.17,914.89,0.68539028]
[1768073527746,0.19004762,916.17,914.6,0.81376673]
[1768073527945,0.19004762,916.17,914.61,0.68635752]
[1768073528148,0.19004762,916.17,914.62,0.68635752]
[1768073528347,0.19004762,916.17,914.63,0.68635752]
[1768073528548,0.19004762,916.17,914.64,0.68635752]
[1768073528749,0.19004762,916.17,914.65,0.68635752]
[1768073528945,0.19004762,916.17,914.66,0.68635752]
[1768073529149,0.19004762,916.17,914.67,0.68635752]
[1768073529349,0.19004762,916.17,914.68,0.68635752]
[1768073529547,0.19004762,916.17,914.69,0.68635752]
[1768073529847,0.19004762,916.17,914.7,0.68635752]
[1768073530146,0.19004762,916.17,914.71,0.68635752]
[1768073530451,0.19004762,916.17,914.72,0.68635752]
[1768073530650,0.19004762,916.17,914.73,0.68635752]
[1768073530846,0.19004762,916.17,914.74,0.68635752]
[1768073531050,0.19004762,916.17,914.63,0.81376673]
[1768073531051,0.19004762,916.17,914.75,0.68635752]
[1768073531248,0.19004762,916.17,914.76,0.68635752]
[1768073531450,0.19004762,916.17,914.77,0.68635752]
[1768073531652,0.19004762,916.17,914.78,0.68635752]
[1768073531851,0.19004762,916.17,914.79,0.68635752]
[1768073532048,0.19004762,916.17,914.8,0.68635752]
[1768073532247,0.19004762,916.17,914.81,0.68635752]
[1768073532548,0.19004762,916.17,914.82,0.68635752]
[1768073532754,0.19004762,916.17,914.83,0.68635752]
[1768073533052,0.19004762,916.17,914.84,0.68635752]
[1768073533252,0.19004762,916.17,914.85,0.68635752]
[1768073533452,0.19004762,916.17,914.86,0.68635752]
[1768073533651,0.19004762,916.17,914.87,0.68635752]
[1768073533849,0.19004762,916.17,914.88,0.68635752]
[1768073534053,0.19004762,916.17,914.89,0.68635752]
[1768073534252,0.19004762,916.17,914.9,0.68635752]
[1768073534556,0.19004762,916.17,914.91,0.68635752]
[1768073534751,0.19004762,916.17,914.92,0.68635752]
[1768073535051,0.19004762,916.17,914.93,0.68635752]
[1768073535351,0.19004762,916.17,914.94,0.68635752]
[1768073535550,0.19004762,916.17,914.95,0.68635752]
[1768073535749,0.19004762,916.17,914.67,0.81376673]
[1768073535750,0.19004762,916.17,914.96,0.68635752]
[1768073536050,0.19004762,916.17,914.97,0.68635752]
[1768073536354,0.19004762,916.17,914.67,0.81376673]
[1768073536549,0.19004762,916.17,914.68,0.68702745]
[1768073536753,0.19004762,916.17,914.69,0.68702745]
[1768073536954,0.19004762,916.17,914.7,0.68702745]
[1768073537153,0.19004762,916.17,914.71,0.68702745]
[1768073537352,0.19004762,916.17,914.72,0.68702745]
[1768073537653,0.19004762,916.17,914.73,0.68702745]
[1768073537852,0.19004762,916.17,914.74,0.68702745]
[1768073538053,0.19004762,916.17,914.75,0.68702745]
[1768073538256,0.19004762,916.17,914.76,0.68702745]
[1768073538454,0.19004762,916.17,914.77,0.68702745]
[1768073538757,0.19004762,916.17,914.78,0.68702745]
[1768073538955,0.19004762,916.17,914.79,0.68702745]
[1768073539152,0.19004762,916.17,914.8,0.68702745]
[1768073539355,0.19004762,916.17,914.81,0.68702745]
[1768073539558,8.7907278,918.51,914.58,2.171]
[1768073539559,2.72679797,917.09,915.06,0.81376673]
[1768073539855,0.19000456,916.29,915.07,0.68702745]
[1768073540058,2.72679797,917.09,915.08,0.68702745]
[1768073540358,0.18996722,916.33,915.09,0.68702745]
[1768073540560,2.72679797,917.12,915.1,0.68702745]
[1768073540754,0.189961,916.38,915.11,0.68702745]
[1768073540955,0.189961,916.38,915.12,0.68702745]
[1768073541255,2.72679797,917.12,915.13,0.68702745]
[1768073541460,0.18995892,916.37,915.14,0.68702745]
[1768073541659,2.72679797,917.14,915.15,0.68702745]
[1768073541959,0.18995789,916.37,915.16,0.68702745]
[1768073542165,2.72679797,917.14,915.17,0.68702745]
[1768073542465,0.18995167,916.41,915.18,0.68702745]
[1768073542761,4.94038213,916.78,915.19,0.68702745]
[1768073543062,4.94038213,916.78,915.2,0.68702745]
[1768073543063,0.18995167,916.4,915.2,0.68702745]
[1768073543266,4.94038213,916.78,915.18,7.23481563]
[1768073543267,4.94038213,916.78,915.21,0.68702745]
[1768073543467,0.18995478,916.54,915.22,0.68702745]
[1768073543767,0.18995478,916.54,915.23,0.68702745]
[1768073544066,0.18995478,916.54,915.24,0.68702745]
[1768073544268,0.18995478,916.54,915.25,0.68702745]
[1768073544461,0.18995478,916.54,915.26,0.68702745]
[1768073544768,0.18995478,916.54,915.27,0.68702745]
[1768073544966,0.18995478,916.54,915.28,0.68702745]
[1768073545263,0.18995478,916.54,915.29,0.68702745]
[1768073545463,0.18995478,916.54,915.3,0.68702745]
[1768073545662,0.18995478,916.54,915.31,0.68702745]
[1768073545865,0.18995478,916.54,915.32,0.68702745]
[1768073546066,0.18995478,916.54,915.33,0.68702745]
[1768073546266,4.94038213,916.78,915.34,0.68702745]
[1768073546466,4.94038213,916.78,915.18,7.23481563]
[1768073546467,0.18993456,916.67,915.35,0.68702745]
[1768073546662,0.18993456,916.67,915.36,0.68702745]
[1768073546967,0.18993456,916.67,915.37,0.68702745]
[1768073547167,0.18993456,916.67,915.38,0.68702745]
[1768073547367,0.18993456,916.67,915.39,0.68702745]
[1768073547563,0.18993456,916.67,915.18,7.23481563]
[1768073547767,0.18993456,916.67,915.19,0.68282516]
[1768073547963,0.18993456,916.67,915.2,0.68282516]
[1768073548167,0.18993456,916.67,915.21,0.68282516]
[1768073548466,0.18993456,916.67,915.22,0.68282516]
[1768073548667,0.18993456,916.67,915.23,0.68282516]
[1768073548967,0.18993456,916.67,915.24,0.68282516]
[1768073549163,0.18993456,916.67,915.25,0.68282516]
[1768073549364,0.18993456,916.67,915.26,0.68282516]
[1768073549562,0.18993456,916.67,915.27,0.68282516]
[1768073549768,0.18993456,916.67,915.28,0.68282516]
[1768073549968,0.18993456,916.67,915.29,0.68282516]
[1768073550162,0.18993456,916.67,915.3,0.68282516]
[1768073550464,0.18993456,916.67,915.31,0.68282516]
[1768073550664,0.18993456,916.67,915.32,0.68282516]
[1768073550868,0.18993456,916.67,915.33,0.68282516]
[1768073551168,0.18993456,916.67,915.34,0.68282516]
[1768073551368,0.18993456,916.67,915.35,0.68282516]
[1768073551669,0.18993456,916.67,915.36,0.68282516]
[1768073551866,0.18993456,916.67,915.37,0.68282516]
[1768073552064,0.18993456,916.67,915.38,0.68282516]
[1768073552268,0.18993456,916.67,915.39,0.68282516]
[1768073552466,0.18993456,916.67,915.4,0.68282516]
[1768073552766,0.18993456,916.67,915.41,0.68282516]
[1768073552969,0.18993456,916.67,915.42,0.68282516]
[1768073553172,0.18993456,916.67,915.43,0.6821506]
[1768073553372,0.18993456,916.67,915.18,7.23481563]
[1768073553574,0.18993456,916.67,915.19,0.68191367]
[1768073553873,0.18993456,916.67,915.2,0.68191367]
[1768073554065,0.18993456,916.67,915.21,0.68191367]
[1768073554270,0.18993456,916.67,915.22,0.68191367]
[1768073554468,0.18993456,916.67,915.23,0.68191367]
[1768073554669,0.18993456,916.67,915.24,0.68191367]
[1768073554969,0.18993456,916.67,915.25,0.68191367]
[1768073555170,0.18993456,916.67,915.26,0.68191367]
[1768073555372,0.18993456,916.67,915.27,0.68191367]
[1768073555571,0.18993456,916.67,915.28,0.68191367]
[1768073555774,0.18993456,916.67,915.29,0.68191367]
[1768073555968,0.18993456,916.67,915.3,0.68191367]
[1768073556177,0.18993456,916.67,915.18,7.23481563]
[1768073556376,0.18993456,916.67,915.19,0.68212552]
[1768073556576,0.18993456,916.67,915.2,0.68212552]
[1768073556874,0.18993456,916.67,915.18,7.23481563]
[1768073556875,0.18993456,916.67,915.21,0.68212552]
[1768073557071,0.18993456,916.67,915.22,0.68212552]
[1768073557276,0.18993456,916.67,915.23,0.68212552]
[1768073557474,0.18993456,916.67,915.24,0.68212552]
[1768073557774,0.18993456,916.67,915.25,0.68212552]
[1768073558076,0.18993456,916.67,915.18,7.23481563]
[1768073558276,0.18993456,916.67,915.19,0.68217255]
[1768073558574,0.18993456,916.67,915.2,0.68217255]
[1768073558775,0.18993456,916.67,915.21,0.68217255]
[1768073558974,0.18993456,916.67,915.22,0.68217255]
[1768073559178,0.18993456,916.67,915.23,0.68217255]
[1768073559372,0.18993456,916.67,915.24,0.68217255]
[1768073559572,0.18993456,916.67,915.25,0.68217255]
[1768073559777,0.18993456,916.67,915.26,0.68217255]
[1768073560074,0.18993456,916.67,915.26,1.553]
[1768073565079,0.18993456,916.67,915.27,0.68324064]
[1768073565380,0.18993456,916.67,915.26,1.553]
[1768073565579,0.18993456,916.67,915.27,0.68327891]
[1768073565882,0.18993456,916.67,915.26,1.553]
[1768073566382,0.18993456,916.67,915.27,0.68330135]
[1768073566583,0.18993456,916.67,915.26,1.553]
[1768073566782,0.18993456,916.67,915.27,0.68335]
[1768073566982,0.18993456,916.67,915.26,1.553]
[1768073567686,0.18993456,916.67,915.27,0.68333315]
[1768073567884,0.18993456,916.67,915.28,0.68333315]
[1768073568184,0.18993456,916.67,915.26,1.553]
[1768073568480,0.18993456,916.67,915.27,0.68342342]
[1768073568685,0.18993456,916.67,915.28,0.68342342]
[1768073568885,0.18993456,916.67,915.29,0.68342342]
[1768073569084,0.18993456,916.67,915.26,1.553]
[1768073569385,0.18993456,916.67,915.27,0.68342342]
[1768073569583,0.18993456,916.67,915.28,0.68342342]
[1768073569788,0.18993456,916.67,915.26,1.553]
[1768073569987,0.18993456,916.67,915.27,0.68352442]
[1768073570188,0.18993456,916.67,915.28,0.68352442]
[1768073570384,0.18993456,916.67,915.29,0.68352442]
[1768073570582,0.18993456,916.67,915.26,1.553]
[1768073570787,0.18993456,916.67,915.27,0.68363666]
[1768073570983,0.18993456,916.67,915.28,0.68363666]
[1768073571189,0.18993456,916.67,915.26,1.553]
[1768073571386,0.18993456,916.67,915.27,0.68376056]
[1768073571687,0.18993456,916.67,915.28,0.68376056]
[1768073571886,0.18993456,916.67,915.26,1.553]
[1768073571887,0.18993456,916.67,915.29,0.68376056]
[1768073572090,0.18993456,916.67,915.26,1.553]
[1768073572288,0.18993456,916.67,915.27,0.68376056]
[1768073572490,0.18993456,916.67,915.28,0.68376056]
[1768073572691,0.18993456,916.67,915.29,0.68376056]
[1768073572891,0.18993456,916.67,915.3,0.68376056]
[1768073573092,0.18993456,916.67,915.26,1.553]
[1768073573392,0.18993456,916.67,915.27,0.68387474]
[1768073573590,0.18993456,916.67,915.28,0.68387474]
[1768073573787,0.18993456,916.67,915.29,0.68387474]
[1768073573987,0.18993456,916.67,915.3,0.68387474]
[1768073574191,0.18993456,916.67,915.26,1.553]
[1768073574387,0.18993456,916.67,915.27,0.68405358]
[1768073574592,0.18993456,916.67,915.28,0.68405358]
[1768073574793,0.18993456,916.67,915.29,0.68405358]
[1768073574993,0.18993456,916.67,915.3,0.68405358]
[1768073575291,0.18993456,916.67,915.31,0.68405358]
[1768073575490,0.18993456,916.67,915.32,0.68405358]
[1768073575698,0.18993456,916.67,915.26,1.553]
[1768073575896,0.18993456,916.67,915.27,0.68421937]
[1768073576095,0.18993456,916.67,915.28,0.68421937]
[1768073576294,0.18993456,916.67,915.29,0.68421937]
[1768073576596,0.18993456,916.67,915.3,0.68421937]
[1768073576792,0.18993456,916.67,915.26,1.553]
[1768073576793,0.18993456,916.67,915.31,0.68421937]
[1768073576997,0.18993456,916.67,915.32,0.68421937]
[1768073577192,0.18993456,916.67,915.33,0.68463859]
[1768073577393,0.18993456,916.67,915.34,0.68463859]
[1768073577595,22.0,916.0,915.26,1.553]
[1768073577897,22.0,916.0,915.27,0.68463855]
[1768073578096,22.0,916.0,915.28,0.68463855]
[1768073578296,22.0,916.0,915.29,0.68463855]
[1768073578593,22.0,916.0,915.3,0.68463855]
[1768073578794,22.0,916.0,915.31,0.68463855]
[1768073579092,22.0,916.0,915.32,0.68463855]
[1768073579297,22.0,916.0,915.33,0.68463855]
[1768073579593,22.0,916.0,915.34,0.68463855]
[1768073579798,22.0,916.0,915.26,1.553]
[1768073580098,22.0,916.0,915.27,0.68448245]
[1768073580295,22.0,916.0,915.28,0.68448245]
[1768073580498,22.0,916.0,915.29,0.68448245]
[1768073580697,22.0,916.0,915.3,0.68448245]
[1768073580897,22.0,916.0,915.31,0.68448245]
[1768073581095,22.0,916.0,915.32,0.68448245]
[1768073581294,22.0,916.0,915.33,0.68448245]
[1768073581594,22.0,916.0,915.34,0.68448245]
[1768073581797,22.0,916.0,915.35,0.68448245]
[1768073582093,22.0,916.0,915.36,0.68448245]
[1768073582298,22.0,916.0,915.37,0.68448245]
[1768073582492,22.0,916.0,915.38,0.68448245]
[1768073582696,22.0,916.0,915.39,0.68448245]
[1768073582898,22.0,916.0,915.4,0.68448245]
[1768073583198,22.0,916.0,915.41,0.68448245]
[1768073583397,22.0,916.0,915.42,0.68448245]
[1768073583599,22.0,916.0,915.43,0.68448245]
[1768073583801,22.0,916.0,915.44,0.68448245]
[1768073583999,22.0,916.0,915.45,0.68448245]
[1768073584199,22.0,916.0,915.46,0.68448245]
[1768073584397,22.0,916.0,915.47,0.68448245]
[1768073584598,22.0,916.0,915.48,0.68448245]
[1768073584896,22.0,916.0,915.49,0.68448245]
[1768073585094,22.0,916.0,915.5,0.68448245]
[1768073585295,22.0,916.0,915.51,0.68448245]
[1768073585501,22.0,916.0,915.26,1.553]
[1768073585697,22.0,916.0,915.27,0.68554541]
[1768073585998,22.0,916.0,915.28,0.68554541]
[1768073586303,22.0,916.0,915.29,0.68554541]
[1768073586500,22.0,916.0,915.3,0.68554541]
[1768073586696,22.0,916.0,915.31,0.68554541]
[1768073587001,22.0,916.0,915.32,0.68554541]
[1768073587201,22.0,916.0,915.33,0.68554541]
[1768073587403,22.0,916.0,915.34,0.68554541]
[1768073587705,22.0,916.0,915.35,0.68554541]
[1768073587901,22.0,916.0,915.36,0.68554541]
[1768073588103,22.0,916.0,915.37,0.68554541]
[1768073588297,22.0,916.0,915.38,0.68554541]
[1768073588598,22.0,916.0,915.27,0.81376673]
[1768073588599,22.0,916.0,915.39,0.68554541]
[1768073588797,22.0,916.0,915.4,0.68554541]
[1768073588998,22.0,916.0,915.41,0.68554541]
[1768073589197,22.0,916.0,915.27,0.81376673]
[1768073589198,22.0,916.0,915.42,0.68554541]
[1768073589400,22.0,916.0,915.43,0.68554541]
[1768073589604,22.0,916.0,915.44,0.68554541]
[1768073589800,22.0,916.0,915.45,0.68554541]
[1768073590001,22.0,916.0,915.46,0.68554541]
[1768073590201,22.0,916.0,915.47,0.68554541]
[1768073590398,22.0,916.0,915.48,0.68554541]
[1768073590698,22.0,916.0,915.49,0.68554541]
[1768073591002,22.0,916.0,915.5,0.68554541]
[1768073591202,22.0,916.0,915.51,0.68554541]
[1768073591498,22.0,916.0,915.52,0.68554541]
[1768073591701,22.0,916.0,915.53,0.68554541]
[1768073591898,22.0,916.0,915.54,0.68554541]
[1768073592102,22.0,916.0,915.55,0.68554541]
[1768073592301,22.0,916.0,915.56,0.68554541]
[1768073592500,22.0,916.0,915.57,0.68554541]
[1768073592703,22.0,916.0,915.28,0.81376673]
[1768073592904,22.0,916.0,915.29,0.68516684]
[1768073593100,22.0,916.0,915.3,0.68516684]
[1768073593309,22.0,916.0,915.31,0.68516684]
[1768073593506,22.0,916.0,915.32,0.68516684]
[1768073593707,22.0,916.0,915.33,0.68516684]
[1768073593908,22.0,916.0,915.34,0.68516684]
[1768073594111,22.0,916.0,915.35,0.68516684]
[1768073594408,22.0,916.0,915.36,0.68516684]
[1768073594603,22.0,916.0,915.37,0.68516684]
[1768073594807,22.0,916.0,915.38,0.68516684]
[1768073595108,22.0,916.0,915.39,0.68516684]
[1768073595305,22.0,916.0,915.4,0.68516684]
[1768073595505,22.0,916.0,915.41,0.68516684]
[1768073595706,22.0,916.0,915.42,0.68516684]
[1768073595906,22.0,916.0,915.43,0.68516684]
[1768073596206,22.0,916.0,915.44,0.68516684]
[1768073596407,22.0,916.0,915.45,0.68516684]
[1768073596704,22.0,916.0,915.46,0.68516684]
[1768073597007,22.0,916.0,915.47,0.68516684]
[1768073597205,22.0,916.0,915.48,0.68516684]
[1768073597405,22.0,916.0,915.49,0.68516684]
[1768073597607,22.0,916.0,915.5,0.68516684]
[1768073597809,22.0,916.0,915.51,0.68516684]
[1768073598108,22.0,916.0,915.52,0.68516684]
[1768073598307,22.0,916.0,915.53,0.68516684]
[1768073598508,22.0,916.0,915.54,0.68516684]
[1768073598709,22.0,916.0,915.55,0.68516684]
[1768073598905,22.0,916.0,915.56,0.68516684]
[1768073599109,22.0,916.0,915.57,0.68516684]
[1768073599307,22.0,916.0,915.58,0.68516684]
[1768073599510,22.0,916.0,915.32,0.81376673]
[1768073599511,22.0,916.0,915.59,0.68516684]
[1768073599710,22.0,916.0,915.6,0.68516684]
[1768073599907,22.0,916.0,915.61,0.68516684]